fUST/lending_fUST_20250610
["ID","MTS","AMOUNT","RATE_DAILY","PERIOD"]
[365265358,1749569459990,-424.12530924,0.00023,3]
[365265359,1749569460001,-700.33004905,0.00023003,8]
[365265360,1749569460010,-151.0,0.00023013,7]
[365265361,1749569460020,-460.0,0.00023013,4]
[365265362,1749569460030,-460.0,0.00023013,4]
[365265363,1749569460040,-460.0,0.00023013,4]
[365265364,1749569460050,-460.0,0.00023013,4]
[365265365,1749569460060,-300.0,0.00023013,4]
[365265366,1749569460071,-300.0,0.00023013,4]
[365265367,1749569460082,-460.0,0.00023013,4]
[365265368,1749569460092,-180.0,0.00023013,4]
[365265369,1749569460102,-460.0,0.00023013,4]
[365265370,1749569460113,-460.0,0.00023013,4]
[365265371,1749569460123,-838.13,0.00023013,4]
[365265372,1749569460133,-460.0,0.00023013,4]
[365265373,1749569460143,-295.13639792,0.00023013,4]
[365265374,1749569460154,-460.0,0.00023013,4]
[365265375,1749569460165,-460.0,0.00023013,4]
[365265376,1749569460175,-460.0,0.00023013,4]
[365265377,1749569460186,-460.0,0.00023013,4]
[365265378,1749569460196,-460.0,0.00023013,4]
[365265379,1749569460206,-925.84,0.00023013,4]
[365265380,1749569460217,-1831.06,0.00023013,4]
[365265381,1749569460227,-460.0,0.00023013,4]
[365265382,1749569460237,-310.0,0.00023013,4]
[365265383,1749569460247,-460.0,0.00023013,4]
[365265384,1749569460260,-878.11,0.00023013,4]
[365265385,1749569460274,-460.0,0.00023013,4]
[365265386,1749569460295,-460.0,0.00023013,4]
[365265387,1749569460315,-215.00518978,0.00023013,4]
[365265388,1749569460334,-460.0,0.00023013,4]
[365265389,1749569460354,-631.24,0.00023013,4]
[365265390,1749569460370,-2155.69,0.00023013,4]
[365265391,1749569460390,-460.0,0.00023013,4]
[365265392,1749569460409,-460.0,0.00023013,4]
[365265393,1749569460427,-460.0,0.00023013,4]
[365265394,1749569460449,-508.21,0.00023013,4]
[365265395,1749569460467,-460.0,0.00023013,4]
[365265396,1749569460489,-460.0,0.00023013,4]
[365265397,1749569460509,-460.0,0.00023013,4]
[365265398,1749569460523,-460.0,0.00023013,4]
[365265399,1749569460542,-460.0,0.00023013,4]
[365265400,1749569460555,-460.0,0.00023013,4]
[365265401,1749569460572,-460.0,0.00023013,4]
[365265402,1749569460584,-471.95,0.00023013,4]
[365265403,1749569460600,-460.0,0.00023013,4]
[365265404,1749569460615,-1030.35,0.00023013,4]
[365265405,1749569460629,-460.0,0.00023013,4]
[365265406,1749569460645,-460.0,0.00023013,4]
[365265407,1749569460660,-507.87610709,0.00023013,4]
[365265408,1749569460675,-460.0,0.00023013,4]
[365265409,1749569460690,-460.0,0.00023013,4]
[365265410,1749569460705,-460.0,0.00023013,4]
[365265411,1749569460719,-527.16,0.00023013,4]
[365265412,1749569460733,-460.0,0.00023013,4]
[365265413,1749569460747,-773.12,0.00023013,4]
[365265414,1749569460765,-460.0,0.00023013,4]
[365265415,1749569460776,-252.25,0.00023013,4]
[365265416,1749569460786,-460.0,0.00023013,4]
[365265417,1749569460796,-714.45,0.00023013,4]
[365265418,1749569460806,-1226.03,0.00023013,4]
[365265419,1749569460816,-1855.94,0.00023013,4]
[365265420,1749569460825,-1160.6,0.00023013,4]
[365265421,1749569460835,-460.0,0.00023013,4]
[365265422,1749569460845,-460.0,0.00023013,4]
[365265423,1749569460854,-460.0,0.00023013,4]
[365265424,1749569460863,-460.0,0.00023013,4]
[365265425,1749569460872,-460.0,0.00023013,4]
[365265426,1749569460881,-460.0,0.00023013,4]
[365265427,1749569460891,-460.0,0.00023013,4]
[365265428,1749569460901,-500.0,0.00023013,4]
[365265429,1749569460910,-460.0,0.00023013,4]
[365265430,1749569460920,-1843.4,0.00023013,4]
[365265431,1749569460929,-897.05,0.00023013,4]
[365265432,1749569460940,-1780.47,0.00023013,4]
[365265433,1749569460951,-460.0,0.00023013,4]
[365265434,1749569460961,-2525.05,0.00023013,4]
[365265435,1749569460971,-460.0,0.00023013,4]
[365265436,1749569460981,-460.0,0.00023013,4]
[365265437,1749569460991,-460.0,0.00023013,4]
[365265438,1749569461002,-532.84,0.00023013,2]
[365265439,1749569461011,-2218.96,0.00023013,4]
[365265440,1749569461021,-284.46,0.00023013,4]
[365265441,1749569461030,-460.0,0.00023013,4]
[365265442,1749569461040,-460.0,0.00023013,4]
[365265443,1749569461050,-1200.0,0.00023056,2]
[365265444,1749569461059,-6161.88963362,0.00023072,2]
[365265445,1749569461070,-92625.37,0.000231,7]
[365265446,1749569461081,-1500.0,0.00023167,2]
[365265447,1749569461091,-700.33004905,0.00023176,8]
[365265448,1749569461100,-151.0,0.000232,7]
[365265449,1749569461110,-205.06927,0.000232,7]
[365265450,1749569461367,-1128.75,0.000232,7]
[365265451,1749569461383,-443.72833663,0.00023232,2]
[365265452,1749569461395,-1526.26156429,0.00023268,2]
[365265453,1749569461404,-6161.88963362,0.00023282,2]
[365265454,1749569461414,-460.0,0.00023287,4]
[365265455,1749569461423,-460.0,0.00023287,4]
[365265456,1749569461434,-300.0,0.00023287,4]
[365265457,1749569461445,-460.0,0.00023287,4]
[365265458,1749569461455,-460.0,0.00023287,4]
[365265459,1749569461466,-460.0,0.00023287,4]
[365265460,1749569461475,-200.0,0.00023287,4]
[365265461,1749569461484,-838.13,0.00023287,4]
[365265462,1749569461494,-460.0,0.00023287,4]
[365265463,1749569461505,-460.0,0.00023287,4]
[365265464,1749569461514,-460.0,0.00023287,4]
[365265465,1749569461523,-460.0,0.00023287,4]
[365265466,1749569461532,-460.0,0.00023287,4]
[365265467,1749569461542,-442.32291808,0.00023287,4]
[365265468,1749569461552,-925.84,0.00023287,4]
[365265469,1749569461561,-1831.06,0.00023287,4]
[365265470,1749569461570,-460.0,0.00023287,4]
[365265471,1749569461580,-199.57021451,0.00023287,4]
[365265472,1749569461590,-878.11,0.00023287,4]
[365265473,1749569461599,-460.0,0.00023287,4]
[365265474,1749569461609,-460.0,0.00023287,4]
[365265475,1749569461618,-460.0,0.00023287,4]
[365265476,1749569461627,-631.24,0.00023287,4]
[365265477,1749569461637,-2155.69,0.00023287,4]
[365265478,1749569461646,-460.0,0.00023287,4]
[365265479,1749569461656,-460.0,0.00023287,4]
[365265480,1749569461666,-460.0,0.00023287,4]
[365265481,1749569461675,-508.21,0.00023287,4]
[365265482,1749569461685,-460.0,0.00023287,4]
[365265483,1749569461694,-280.0,0.00023287,4]
[365265484,1749569461704,-460.0,0.00023287,4]
[365265485,1749569461713,-460.0,0.00023287,4]
[365265486,1749569461723,-460.0,0.00023287,4]
[365265487,1749569461732,-460.0,0.00023287,4]
[365265488,1749569461742,-460.0,0.00023287,4]
[365265489,1749569461751,-471.95,0.00023287,4]
[365265490,1749569461761,-460.0,0.00023287,4]
[365265491,1749569461771,-1030.35,0.00023287,4]
[365265492,1749569461780,-460.0,0.00023287,4]
[365265493,1749569461789,-460.0,0.00023287,4]
[365265494,1749569461799,-460.0,0.00023287,4]
[365265495,1749569461808,-460.0,0.00023287,4]
[365265496,1749569461817,-460.0,0.00023287,4]
[365265497,1749569461827,-527.16,0.00023287,4]
[365265498,1749569461836,-460.0,0.00023287,4]
[365265499,1749569461847,-773.12,0.00023287,4]
[365265500,1749569461856,-280.0,0.00023287,4]
[365265501,1749569461865,-460.0,0.00023287,4]
[365265502,1749569461875,-714.45,0.00023287,4]
[365265503,1749569461885,-1226.03,0.00023287,4]
[365265504,1749569461895,-1855.94,0.00023287,4]
[365265505,1749569461905,-1160.6,0.00023287,4]
[365265506,1749569461915,-460.0,0.00023287,4]
[365265507,1749569461923,-163.506835,0.00023287,7]
[365265508,1749569461933,-460.0,0.00023287,4]
[365265509,1749569461942,-460.0,0.00023287,4]
[365265510,1749569461951,-163.506835,0.00023287,7]
[365265511,1749569461960,-460.0,0.00023287,4]
[365265512,1749569461970,-460.0,0.00023287,4]
[365265513,1749569461979,-460.0,0.00023287,4]
[365265514,1749569461989,-460.0,0.00023287,4]
[365265515,1749569461998,-460.0,0.00023287,4]
[365265516,1749569462009,-1843.4,0.00023287,4]
[365265517,1749569462018,-897.05,0.00023287,4]
[365265518,1749569462028,-1780.47,0.00023287,4]
[365265519,1749569462036,-212.2,0.00023287,4]
[365265520,1749569462046,-2525.05,0.00023287,4]
[365265521,1749569462057,-460.0,0.00023287,4]
[365265522,1749569462067,-460.0,0.00023287,4]
[365265523,1749569462079,-460.0,0.00023287,4]
[365265524,1749569462090,-532.84,0.00023287,2]
[365265525,1749569462099,-2218.96,0.00023287,4]
[365265526,1749569462109,-460.0,0.00023287,4]
[365265527,1749569462119,-460.0,0.00023287,4]
[365265528,1749569462128,-5000.0,0.00023303,2]
[365265529,1749569462138,-800.0,0.00023315,2]
[365265530,1749569462148,-653.0,0.00023328,2]
[365265531,1749569462158,-2160.0,0.00023328,2]
[365265532,1749569462168,-405.0,0.00023328,2]
[365265533,1749569462177,-965.62,0.00023328,2]
[365265534,1749569462187,-443.72833663,0.00023334,2]
[365265535,1749569462196,-700.33004905,0.00023348,9]
[365265536,1749569462206,-61983.62,0.000234,2]
[365265537,1749569462216,-502.03517044,0.000234,2]
[365265538,1749569462225,-500.0,0.000234,2]
[365265539,1749569462234,-6161.88963362,0.00023492,2]
[365265540,1749569462244,-3302.0,0.000235,2]
[365265541,1749569462253,-1290.5,0.000235,2]
[365265542,1749569462263,-291.863371,0.00023513,7]
[365265543,1749569462272,-243.169856,0.00023513,7]
[365265544,1749569462281,-243.169856,0.00023513,7]
[365265545,1749569462290,-151.0,0.00023513,7]
[365265546,1749569462299,-424.061233,0.00023513,7]
[365265547,1749569462309,-424.061233,0.00023513,7]
[365265548,1749569462318,-151.0,0.00023513,7]
[365265549,1749569462328,-700.33004905,0.00023521,9]
[365265550,1749569462338,-3661.0,0.00023555,2]
[365265551,1749569462347,-460.0,0.00023561,4]
[365265552,1749569462357,-460.0,0.00023561,4]
[365265553,1749569462367,-320.0,0.00023561,4]
[365265554,1749569462376,-460.0,0.00023561,4]
[365265555,1749569462386,-460.0,0.00023561,4]
[365265556,1749569462395,-838.13,0.00023561,4]
[365265557,1749569462404,-460.0,0.00023561,4]
[365265558,1749569462414,-460.0,0.00023561,4]
[365265559,1749569462424,-460.0,0.00023561,4]
[365265560,1749569462434,-460.0,0.00023561,4]
[365265561,1749569462444,-460.0,0.00023561,4]
[365265562,1749569462454,-925.84,0.00023561,4]
[365265563,1749569462464,-1831.06,0.00023561,4]
[365265564,1749569462474,-460.0,0.00023561,4]
[365265565,1749569462483,-878.11,0.00023561,4]
[365265566,1749569462492,-460.0,0.00023561,4]
[365265567,1749569462503,-600.0,0.00023561,4]
[365265568,1749569462513,-237.06801446,0.00023561,4]
[365265569,1749569462522,-631.24,0.00023561,4]
[365265570,1749569462532,-2155.69,0.00023561,4]
[365265571,1749569462542,-460.0,0.00023561,4]
[365265572,1749569462551,-460.0,0.00023561,4]
[365265573,1749569462561,-460.0,0.00023561,4]
[365265574,1749569462571,-508.21,0.00023561,4]
[365265575,1749569462581,-460.0,0.00023561,4]
[365265576,1749569462590,-460.0,0.00023561,4]
[365265577,1749569462600,-460.0,0.00023561,4]
[365265578,1749569462609,-460.0,0.00023561,4]
[365265579,1749569462619,-460.0,0.00023561,4]
[365265580,1749569462629,-460.0,0.00023561,4]
[365265581,1749569462638,-471.95,0.00023561,4]
[365265582,1749569462648,-460.0,0.00023561,4]
[365265583,1749569462657,-460.0,0.00023561,4]
[365265584,1749569462667,-1030.35,0.00023561,4]
[365265585,1749569462677,-460.0,0.00023561,4]
[365265586,1749569462687,-280.0,0.00023561,4]
[365265587,1749569462696,-460.0,0.00023561,4]
[365265588,1749569462706,-460.0,0.00023561,4]
[365265589,1749569462716,-527.16,0.00023561,4]
[365265590,1749569462725,-460.0,0.00023561,4]
[365265591,1749569462735,-773.12,0.00023561,4]
[365265592,1749569462744,-460.0,0.00023561,4]
[365265593,1749569462754,-714.45,0.00023561,4]
[365265594,1749569462764,-1226.03,0.00023561,4]
[365265595,1749569462774,-1855.94,0.00023561,4]
[365265596,1749569462783,-1160.6,0.00023561,4]
[365265597,1749569462793,-460.0,0.00023561,4]
[365265598,1749569462803,-460.0,0.00023561,4]
[365265599,1749569462814,-592.8,0.00023561,4]
[365265600,1749569462824,-460.0,0.00023561,4]
[365265601,1749569462833,-460.0,0.00023561,4]
[365265602,1749569462843,-460.0,0.00023561,4]
[365265603,1749569462852,-460.0,0.00023561,4]
[365265604,1749569462862,-460.0,0.00023561,4]
[365265605,1749569462872,-1843.4,0.00023561,4]
[365265606,1749569462882,-897.05,0.00023561,4]
[365265607,1749569462891,-1780.47,0.00023561,4]
[365265608,1749569462900,-2525.05,0.00023561,4]
[365265609,1749569462911,-460.0,0.00023561,4]
[365265610,1749569462923,-460.0,0.00023561,4]
[365265611,1749569462933,-460.0,0.00023561,4]
[365265612,1749569462943,-532.84,0.00023561,2]
[365265613,1749569462955,-2218.96,0.00023561,4]
[365265614,1749569462964,-460.0,0.00023561,4]
[365265615,1749569462973,-460.0,0.00023561,4]
[365265616,1749569462983,-11699.999801,0.00023613,7]
[365265617,1749569462992,-443.72833663,0.00023668,2]
[365265618,1749569463004,-700.33004905,0.00023693,9]
[365265619,1749569463014,-151.0,0.000237,9]
[365265620,1749569463024,-6161.88963362,0.00023702,2]
[365265621,1749569463034,-500.0,0.00023715,2]
[365265622,1749569463043,-1346.701887,0.00023716,3]
[365265623,1749569463053,-311.4322408,0.00023726,2]
[365265624,1749569463063,-800.0,0.00023729,2]
[365265625,1749569463074,-36660.04694066,0.00023799,2]
[365265626,1749569463084,-1925.26,0.000238,7]
[365265627,1749569463093,-63095.13671237,0.000238,3]
[365265628,1749569463103,-1322.0,0.000238,2]
[365265629,1749569463114,-160.0,0.00023834,2]
[365265630,1749569463124,-460.0,0.00023835,4]
[365265631,1749569463133,-460.0,0.00023835,4]
[365265632,1749569463143,-460.0,0.00023835,4]
[365265633,1749569463152,-460.0,0.00023835,4]
[365265634,1749569463163,-838.13,0.00023835,4]
[365265635,1749569463173,-460.0,0.00023835,4]
[365265636,1749569463182,-460.0,0.00023835,4]
[365265637,1749569463192,-460.0,0.00023835,4]
[365265638,1749569463202,-460.0,0.00023835,4]
[365265639,1749569463212,-460.0,0.00023835,4]
[365265640,1749569463222,-925.84,0.00023835,4]
[365265641,1749569463232,-1831.06,0.00023835,4]
[365265642,1749569463241,-260.0,0.00023835,4]
[365265643,1749569463251,-878.11,0.00023835,4]
[365265644,1749569463261,-153.77067932,0.00023835,4]
[365265645,1749569463271,-631.24,0.00023835,4]
[365265646,1749569463282,-2155.69,0.00023835,4]
[365265647,1749569463292,-280.0,0.00023835,4]
[365265648,1749569463302,-460.0,0.00023835,4]
[365265649,1749569463313,-460.0,0.00023835,4]
[365265650,1749569463322,-508.21,0.00023835,4]
[365265651,1749569463332,-460.0,0.00023835,4]
[365265652,1749569463342,-310.0,0.00023835,4]
[365265653,1749569463358,-331.40210787,0.00023835,4]
[365265654,1749569463368,-240.0,0.00023835,4]
[365265655,1749569463378,-460.0,0.00023835,4]
[365265656,1749569463389,-460.0,0.00023835,4]
[365265657,1749569463398,-471.95,0.00023835,4]
[365265658,1749569463408,-460.0,0.00023835,4]
[365265659,1749569463418,-460.0,0.00023835,4]
[365265660,1749569463428,-1030.35,0.00023835,4]
[365265661,1749569463438,-460.0,0.00023835,4]
[365265662,1749569463448,-280.0,0.00023835,4]
[365265663,1749569463458,-460.0,0.00023835,4]
[365265664,1749569463469,-527.16,0.00023835,4]
[365265665,1749569463481,-280.0,0.00023835,4]
[365265666,1749569463491,-773.12,0.00023835,4]
[365265667,1749569463501,-460.0,0.00023835,4]
[365265668,1749569463516,-714.45,0.00023835,4]
[365265669,1749569463527,-1226.03,0.00023835,4]
[365265670,1749569463537,-1855.94,0.00023835,4]
[365265671,1749569463549,-1160.6,0.00023835,4]
[365265672,1749569463560,-460.0,0.00023835,4]
[365265673,1749569463571,-460.0,0.00023835,4]
[365265674,1749569463581,-460.0,0.00023835,4]
[365265675,1749569463592,-460.0,0.00023835,4]
[365265676,1749569463603,-460.0,0.00023835,4]
[365265677,1749569463614,-460.0,0.00023835,4]
[365265678,1749569463624,-460.0,0.00023835,4]
[365265679,1749569463634,-1843.4,0.00023835,4]
[365265680,1749569463645,-897.05,0.00023835,4]
[365265681,1749569463655,-1780.47,0.00023835,4]
[365265682,1749569463665,-2525.05,0.00023835,4]
[365265683,1749569463676,-460.0,0.00023835,4]
[365265684,1749569463687,-460.0,0.00023835,4]
[365265685,1749569463698,-460.0,0.00023835,4]
[365265686,1749569463711,-532.84,0.00023835,2]
[365265687,1749569463723,-2218.96,0.00023835,4]
[365265688,1749569463734,-460.0,0.00023835,4]
[365265689,1749569463744,-460.0,0.00023835,4]
[365265690,1749569463760,-1076.0,0.00023837,2]
[365265691,1749569463775,-5000.0,0.00023851,2]
[365265692,1749569463786,-700.33004905,0.00023866,10]
[365265693,1749569463798,-1090.0,0.0002388,2]
[365265694,1749569463810,-153.164763,0.0002389,7]
[365265695,1749569463821,-514.64059273,0.000239,2]
[365265696,1749569463832,-1812.17805154,0.00023908,2]
[365265697,1749569463844,-6161.88963362,0.00023912,2]
[365265698,1749569463856,-1337.0,0.00023999,2]
[365265699,1749569463867,-1000.0,0.00024,24]
[365265700,1749569463881,-151.0,0.00024,5]
[365265701,1749569463893,-160.0,0.00024,7]
[365265702,1749569463905,-160.0,0.00024,7]
[365265703,1749569463916,-160.0,0.00024,7]
[365265704,1749569463927,-13840.17961048,0.00024,2]
[365265705,1749569463940,-229.6792923,0.00024,7]
[365265706,1749569463951,-424.12530924,0.00024,7]
[365265707,1749569463962,-163.506835,0.00024,7]
[365265708,1749569463972,-163.506835,0.00024,7]
[365265709,1749569463982,-177.5657859,0.00024027,2]
[365265710,1749569463992,-153.0,0.00024027,2]
[365265711,1749569464004,-573.3540349,0.00024027,2]
[365265712,1749569464022,-153.0,0.00024027,2]
[365265713,1749569464033,-176.8341807,0.00024027,2]
[365265714,1749569464043,-158.7504224,0.00024027,2]
[365265715,1749569464054,-176.8341807,0.00024027,2]
[365265716,1749569464065,-573.3540349,0.00024027,2]
[365265717,1749569464076,-176.8341807,0.00024027,2]
[365265718,1749569464090,-158.7504224,0.00024027,2]
[365265719,1749569464101,-153.0,0.00024027,2]
[365265720,1749569464111,-573.3540349,0.00024027,2]
[365265721,1749569464122,-153.0,0.00024027,2]
[365265722,1749569464133,-176.8341807,0.00024027,2]
[365265723,1749569464145,-573.3540349,0.00024027,2]
[365265724,1749569464156,-153.0,0.00024027,2]
[365265725,1749569464167,-176.8341807,0.00024027,2]
[365265726,1749569464177,-153.0,0.00024027,2]
[365265727,1749569464187,-573.3540349,0.00024027,2]
[365265728,1749569464198,-573.3540349,0.00024027,2]
[365265729,1749569464208,-491.6054712,0.00024027,2]
[365265730,1749569464219,-573.3540349,0.00024027,2]
[365265731,1749569464229,-153.0,0.00024027,2]
[365265732,1749569464239,-383.4265406,0.00024027,2]
[365265733,1749569464249,-153.0,0.00024027,2]
[365265734,1749569464267,-700.33004905,0.00024038,10]
[365265735,1749569464277,-271.54991369,0.00024054,2]
[365265736,1749569464288,-2200.0,0.00024092,2]
[365265737,1749569464298,-151.0,0.000241,7]
[365265738,1749569464308,-154.434336,0.000241,7]
[365265739,1749569464319,-259.081395,0.000241,7]
[365265740,1749569464330,-151.472035,0.000241,7]
[365265741,1749569464341,-151.0,0.000241,7]
[365265742,1749569464351,-151.0,0.000241,7]
[365265743,1749569464361,-153.0,0.000241,3]
[365265744,1749569464372,-153.0,0.000241,3]
[365265745,1749569464383,-151.0,0.000241,7]
[365265746,1749569464394,-151.0,0.000241,7]
[365265747,1749569464405,-153.0,0.000241,3]
[365265748,1749569464415,-153.0,0.000241,3]
[365265749,1749569464426,-154.20873316,0.000241,3]
[365265750,1749569464437,-316.0,0.000241,3]
[365265751,1749569464447,-316.0,0.000241,3]
[365265752,1749569464457,-316.0,0.000241,3]
[365265753,1749569464467,-316.0,0.000241,3]
[365265754,1749569464477,-316.0,0.000241,3]
[365265755,1749569464486,-316.0,0.000241,3]
[365265756,1749569464496,-316.0,0.000241,3]
[365265757,1749569464508,-315.9982552,0.000241,3]
[365265758,1749569464518,-151.0,0.00024109,7]
[365265759,1749569464528,-151.0,0.00024109,7]
[365265760,1749569464539,-460.0,0.00024109,4]
[365265761,1749569464550,-460.0,0.00024109,4]
[365265762,1749569464560,-460.0,0.00024109,4]
[365265763,1749569464571,-280.0,0.00024109,4]
[365265764,1749569464580,-838.13,0.00024109,4]
[365265765,1749569464590,-496.80286985,0.00024109,4]
[365265766,1749569464600,-460.0,0.00024109,4]
[365265767,1749569464614,-460.0,0.00024109,4]
[365265768,1749569464624,-460.0,0.00024109,4]
[365265769,1749569464635,-220.0,0.00024109,4]
[365265770,1749569464764,-925.84,0.00024109,4]
[365265771,1749569464776,-1831.06,0.00024109,4]
[365265772,1749569464786,-878.11,0.00024109,4]
[365265773,1749569464796,-631.24,0.00024109,4]
[365265774,1749569464806,-2155.69,0.00024109,4]
[365265775,1749569464817,-460.0,0.00024109,4]
[365265776,1749569464827,-460.0,0.00024109,4]
[365265777,1749569464838,-508.21,0.00024109,4]
[365265778,1749569464849,-460.0,0.00024109,4]
[365265779,1749569464859,-460.0,0.00024109,4]
[365265780,1749569464870,-460.0,0.00024109,4]
[365265781,1749569464880,-471.95,0.00024109,4]
[365265782,1749569464890,-280.0,0.00024109,4]
[365265783,1749569464901,-460.0,0.00024109,4]
[365265784,1749569464910,-1030.35,0.00024109,4]
[365265785,1749569464923,-460.0,0.00024109,4]
[365265786,1749569464934,-280.0,0.00024109,4]
[365265787,1749569464944,-527.16,0.00024109,4]
[365265788,1749569464954,-773.12,0.00024109,4]
[365265789,1749569464964,-460.0,0.00024109,4]
[365265790,1749569464974,-714.45,0.00024109,4]
[365265791,1749569464984,-1226.03,0.00024109,4]
[365265792,1749569464995,-1855.94,0.00024109,4]
[365265793,1749569465007,-1160.6,0.00024109,4]
[365265794,1749569465017,-506.38101383,0.00024109,4]
[365265795,1749569465026,-460.0,0.00024109,4]
[365265796,1749569465036,-280.0,0.00024109,4]
[365265797,1749569465047,-460.0,0.00024109,4]
[365265798,1749569465057,-580.0,0.00024109,4]
[365265799,1749569465068,-590.0,0.00024109,4]
[365265800,1749569465079,-460.0,0.00024109,4]
[365265801,1749569465091,-1843.4,0.00024109,4]
[365265802,1749569465101,-897.05,0.00024109,4]
[365265803,1749569465111,-1780.47,0.00024109,4]
[365265804,1749569465121,-460.0,0.00024109,4]
[365265805,1749569465130,-2525.05,0.00024109,4]
[365265806,1749569465140,-460.0,0.00024109,4]
[365265807,1749569465150,-460.0,0.00024109,4]
[365265808,1749569465161,-532.84,0.00024109,2]
[365265809,1749569465171,-2218.96,0.00024109,4]
[365265810,1749569465181,-460.0,0.00024109,4]
[365265811,1749569465190,-460.0,0.00024109,4]
[365265812,1749569465200,-6161.88963362,0.00024122,2]
[365265813,1749569465210,-215.0738,0.00024124,2]
[365265814,1749569465220,-443.72833663,0.00024157,2]
[365265815,1749569465230,-200.0,0.0002416,10]
[365265816,1749569465239,-638.66530525,0.00024187,2]
[365265817,1749569465249,-151.0,0.000242,7]
[365265818,1749569465262,-2000.0,0.000242,2]
[365265819,1749569465272,-2000.0,0.000242,2]
[365265820,1749569465281,-1000.0,0.000242,2]
[365265821,1749569465291,-151.0,0.000242,7]
[365265822,1749569465302,-243.169856,0.000242,7]
[365265823,1749569465312,-243.169856,0.000242,7]
[365265824,1749569465322,-213.036528,0.000242,7]
[365265825,1749569465332,-424.061233,0.000242,7]
[365265826,1749569465342,-424.061233,0.000242,7]
[365265827,1749569465351,-1000.0,0.000242,2]
[365265828,1749569465361,-92625.37,0.000242,7]
[365265829,1749569465372,-700.33004905,0.0002421,10]
[365265830,1749569465381,-1337.0,0.00024242,2]
[365265831,1749569465391,-1337.0,0.00024261,2]
[365265832,1749569465401,-766.63,0.00024293,5]
[365265833,1749569465411,-84889.72762288,0.00024321,3]
[365265834,1749569465456,-49808.89219957,0.00024321,3]
[365265835,1749569465467,-151.0,0.00024321,7]
[365265836,1749569465478,-151.0,0.00024321,7]
[365265837,1749569465488,-151.0,0.00024321,7]
[365265838,1749569465499,-151.0,0.00024321,7]
[365265839,1749569465512,-152.463357,0.00024321,7]
[365265840,1749569465523,-152.463357,0.00024321,7]
[365265841,1749569465535,-163.506835,0.00024321,7]
[365265842,1749569465545,-163.506835,0.00024321,7]
[365265843,1749569465555,-213.1263252,0.0002433,3]
[365265844,1749569465566,-6161.88963362,0.00024332,2]
[365265845,1749569465576,-1226.20543439,0.0002434,7]
[365265846,1749569465586,-400.8147686,0.00024354,3]
[365265847,1749569465596,-700.33004905,0.00024383,11]
[365265848,1749569465606,-492.61447015,0.00024383,4]
[365265849,1749569465616,-460.0,0.00024383,4]
[365265850,1749569465625,-460.0,0.00024383,4]
[365265851,1749569465634,-838.13,0.00024383,4]
[365265852,1749569465644,-460.0,0.00024383,4]
[365265853,1749569465653,-460.0,0.00024383,4]
[365265854,1749569465664,-460.0,0.00024383,4]
[365265855,1749569465673,-925.84,0.00024383,4]
[365265856,1749569465684,-1831.06,0.00024383,4]
[365265857,1749569465695,-878.11,0.00024383,4]